Cogmind - Beta 13 @@@ ROGUE MODE // 2024.06.12 @ 05:22:48 Player: Rune Result: Destroyed by G-47 Trooper with Particle Gun Performance ------------- Evolutions (2) 1000 Regions Visited (5) 1000 Robots Destroyed (3) 15 Value Destroyed (92) 92 Prototype IDs (2) 40 Alien Tech Used (0) 0 Bonus (28) 28 TOTAL SCORE: 2175 Bonus ------- Follower Combat Kills 28 Cogmind --------- Core Integrity 0/550 Matter 280/300 Energy 99/100 System Corruption 0% Temperature Cool (9) Movement Core (100) Ox1 Location -8/Materials Parts ------- > --- POWER (1) -------- (None) > --- PROPULSION (2) --- (None) > --- UTILITY (5) ------ Small Storage Unit > --- WEAPON (3) ------- (None) > --- INVENTORY (8) ---- Light Ion Engine Nuclear Core Light Fission Core Wheel Wheel Flight Unit Peak State ------------ > --- POWER ------------ Light Ion Engine > --- PROPULSION ------- (None) > --- UTILITY ---------- Small Storage Unit > --- WEAPON ----------- Light Assault Rifle Light Assault Rifle Gauss Cannon > --- INVENTORY -------- Light Ion Engine Nuclear Core Light Fission Core Wheel Wheel Flight Unit Heavy Laser [Rating: 9] Favorites ----------- Power Light Ion Engine Engine Light Ion Engine Propulsion Aluminum Leg Leg Aluminum Leg Wheel Wheel Utility Small Storage Unit Storage Small Storage Unit Weapon Light Assault Rifle Energy Gun EM Pulse Gun Ballistic Gun Light Assault Rifle Ballistic Cannon Gauss Cannon Build | -11 -10 -10 -10 -9 -8 ------- Run | Yrd Mat Min Exi Min Mat Slots Evolved 4 | . . . . . 4 Power . | . . . . . . Propulsion . | . . . . . . Utility 3 | . . . . . 3 Weapon 1 | . . . . . 1 Parts Attached 13 | 5 3 . . 3 2 Power 2 | 1 . . . 1 . Engine 2 | 1 . . . 1 . Core . | . . . . . . Reactor . | . . . . . . Propulsion 3 | 1 2 . . . . Treads . | . . . . . . Leg 2 | . 2 . . . . Wheel 1 | 1 . . . . . Hover . | . . . . . . Flight . | . . . . . . Utility 1 | 1 . . . . . Device . | . . . . . . Storage 1 | 1 . . . . . Processor . | . . . . . . Hackware . | . . . . . . Protection . | . . . . . . Artifact . | . . . . . . Weapon 7 | 2 1 . . 2 2 Energy Gun 3 | 1 1 . . . 1 Energy Cannon . | . . . . . . Ballistic Gun 3 | 1 . . . 2 . Ballistic Cannon 1 | . . . . . 1 Launcher . | . . . . . . Special Weapon . | . . . . . . Impact Weapon . | . . . . . . Slashing Weapon . | . . . . . . Piercing Weapon . | . . . . . . Special Melee Weapon . | . . . . . . Unidentified Prototypes . | . . . . . . Parts Lost 11 | . 5 1 . 1 4 Power 2 | . 1 . . . 1 Propulsion 3 | . 1 1 . 1 . Utility . | . . . . . . Weapon 6 | . 3 . . . 3 Highest Loss Streak 5 | . 5 1 . 1 4 To Critical Strikes . | . . . . . . Average Slot Usage (%) 43 | . 58 28 28 47 27 Engine 6 | . 9 . . 9 3 Leg 5 | . 9 14 14 3 . Wheel 1 | . 7 . . . . Storage 12 | . 14 14 14 14 9 Energy Gun 2 | . 7 . . . 1 Ballistic Gun 12 | . 9 . . 20 8 Ballistic Cannon 1 | . . . . . 4 Naked Turns . | . . . . . . Heaviest Build 17 | 14 14 5 5 10 17 Greatest Support 20 | 10 20 20 10 10 3 Greatest Overweight (x) 5 | 1 3 . . 3 5 Average Overweight (x) 1 | . . . . 1 1 Largest Inventory Capacity 8 | 8 8 8 8 8 8 Average Capacity 7 | 7 8 8 8 8 8 Most Carried 8 | 5 6 2 4 8 7 Average Carried 4 | 2 3 2 2 6 6 Final Capacity 8 | 8 8 8 8 8 8 Final Carried 8 | 5 2 2 4 8 6 Class Distribution -------------------- 92% | Mutant 7% | Gunner Dominant Class ---------------- Mutant | -10/Materials Mutant | -10/Mines Mutant | -10/Exiles Mutant | -9/Mines Mutant | -8/Materials Resources | -11 -10 -10 -10 -9 -8 ----------- Run | Yrd Mat Min Exi Min Mat Matter Collected 335 | 251 . . . 41 43 Remotely . | . . . . . . Salvage Created 115 | 25 47 . . . 43 Parts 8 | 3 3 . . . 2 Haulers Intercepted . | . . . . . . Recyclers Shooed . | . . . . . . Parts Field Recycled . | . . . . . . Retrieved Matter . | . . . . . . Parts Self-Destructed . | . . . . . . Prevented . | . . . . . . Kills | -11 -10 -10 -10 -9 -8 ------- Run | Yrd Mat Min Exi Min Mat Combat Hostiles Destroyed 2 | . 1 . . . 1 Guns 2 | . 1 . . . 1 Classes Destroyed 2 | 1 1 . . . . Worker 1 | 1 . . . . . Grunt 2 | . 1 . . . 1 Best Kill Streak 1 | 1 1 . . . 1 Combat Bots Only 1 | . 1 . . . 1 Max Kills in Single Turn 1 | 1 1 . . . 1 Gunslinging . | . . . . . . Exploded . | . . . . . . Melee . | . . . . . . Uniques/NPCs Destroyed . | . . . . . . Combat | -11 -10 -10 -10 -9 -8 -------- Run | Yrd Mat Min Exi Min Mat Hostile Shots Fired 193 | . 106 8 . 8 71 Missed 66 | . 41 2 . 6 17 Damage Taken 1787 | . 626 86 . 88 987 Core 785 | . 144 23 . 62 556 Absorbed by Shields . | . . . . . . Core Remaining (%) 54 | 100 . . . 8 . Volleys Fired 29 | 1 16 . . . 12 Largest 3 | 2 2 . . . 3 Hottest 89 | 60 60 . . . 89 Shots Fired 49 | 2 25 . . . 22 Gun 44 | 2 25 . . . 17 Cannon 5 | . . . . . 5 Launcher . | . . . . . . Special . | . . . . . . Kinetic 34 | 1 16 . . . 17 Thermal 5 | . . . . . 5 Explosive . | . . . . . . Electromagnetic 10 | 1 9 . . . . Robot Hit Streak 8 | 1 4 . . . 8 Robot Miss Streak 4 | . 3 . . . 4 Penetration Max . | . . . . . . Secondary Targets . | . . . . . . Shots Hit Robots 31 | 1 15 . . . 15 Core Hits 8 | 1 2 . . . 5 Critical Kills . | . . . . . . Critical Parts Destroyed . | . . . . . . Critical Strikes . | . . . . . . Melee Attacks . | . . . . . . Impact . | . . . . . . Slashing . | . . . . . . Piercing . | . . . . . . Sneak Attacks . | . . . . . . Combat Hostiles . | . . . . . . Follow-up Attacks . | . . . . . . Damage Inflicted 454 | 13 231 . . 4 206 Guns 387 | 13 222 . . . 152 Cannons 53 | . . . . . 53 Explosions . | . . . . . . Melee . | . . . . . . Ramming 14 | . 9 . . 4 1 Kinetic 228 | . 119 . . . 109 Thermal 96 | . . . . . 96 Explosive . | . . . . . . Electromagnetic 116 | 13 103 . . . . Impact . | . . . . . . Slashing . | . . . . . . Piercing . | . . . . . . Highest Corruption 1 | . . . . 1 . Average Corruption 1 | . . . . 1 . Corruption Purged . | . . . . . . Corruption Blocked . | . . . . . . Effects 1 | . . . . 1 . Heat Flow Errors 1 | . . . . 1 . Overload Shots . | . . . . . . Overflow Damage . | . . . . . . Projectiles . | . . . . . . Explosions . | . . . . . . Melee . | . . . . . . Knockbacks 2 | . . . . . 2 Impact . | . . . . . . Kinetic 1 | . . . . . 1 Secondary 1 | . . . . . 1 Self-Inflicted Damage . | . . . . . . Shots . | . . . . . . Rammed 1 | . . . . . 1 Targets Rammed 3 | . 1 . . 1 1 Kicked 2 | . 1 . . 1 . Crushed . | . . . . . . Highest Temperature 275 | . 60 . . 275 54 Average Temperature 49 | . 25 . . 145 28 Received Heat Transfer 711 | . 204 45 . 12 450 Siege Activations . | . . . . . . Robots Corrupted . | . . . . . . Combat Hostiles . | . . . . . . Parts Fried . | . . . . . . Impact Corruptions . | . . . . . . Robots Melted . | . . . . . . Combat Hostiles . | . . . . . . Parts Melted . | . . . . . . Heat Transferred 185 | . . . . . 185 Parts Sabotaged . | . . . . . . Parts Stolen . | . . . . . . Parts Stripped . | . . . . . . Power Chain Reactions . | . . . . . . Alert | -11 -10 -10 -10 -9 -8 ------- Run | Yrd Mat Min Exi Min Mat Peak Influence 109 | 5 109 47 . 89 35 Initial 42 | . 3 42 . . 34 Average 39 | . 48 46 . 68 17 Maximum Alert Level . | . . . . . . Low Security (%) 100 | 100 100 100 . 100 100 Level 1 . | . . . . . . Level 2 . | . . . . . . Level 3 . | . . . . . . Level 4 . | . . . . . . Level 5 . | . . . . . . High Security . | . . . . . . Max Security . | . . . . . . Squads Dispatched 2 | . 1 . . . 1 Investigation 1 | . 1 . . . . Extermination . | . . . . . . Reinforcement 1 | . . . . . 1 Assault . | . . . . . . Garrison . | . . . . . . Intercept . | . . . . . . Searches Triggered . | . . . . . . Construction Impeded . | . . . . . . Haulers Reinforced . | . . . . . . Active Scanning Responses . | . . . . . . Cargo Convoy Interrupts . | . . . . . . Stealth | -11 -10 -10 -10 -9 -8 --------- Run | Yrd Mat Min Exi Min Mat Distress Signals 1 | . 1 . . . . Communications Jammed . | . . . . . . Distress Signals . | . . . . . . Times Spotted 24 | . 11 2 . 4 7 Peak Tracking Total 7 | . 6 2 . 4 7 Tactical Retreats 2 | . 2 . . . . Traps | -11 -10 -10 -10 -9 -8 ------- Run | Yrd Mat Min Exi Min Mat Traps Triggered 3 | . . . . 2 1 Indirectly . | . . . . . . Trap Hack Attempts . | . . . . . . Triggered . | . . . . . . Disarmed . | . . . . . . Reprogrammed . | . . . . . . Reused . | . . . . . . Traps Extracted . | . . . . . . Installed . | . . . . . . Triggered . | . . . . . . Machines | -11 -10 -10 -10 -9 -8 ---------- Run | Yrd Mat Min Exi Min Mat Machines Disabled 1 | . 1 . . . . Max in Single Turn 1 | . 1 . . . . Machines Repaired . | . . . . . . Machines Dismantled . | . . . . . . Machines Sabotaged . | . . . . . . Overloaded Fab Kills . | . . . . . . Hacking | -11 -10 -10 -10 -9 -8 --------- Run | Yrd Mat Min Exi Min Mat Machines Accessed 3 | . 2 . . 1 . Terminals 2 | . 2 . . . . Fabricators . | . . . . . . Repair Stations . | . . . . . . Recycling Units . | . . . . . . Scanalyzers . | . . . . . . Garrison Access . | . . . . . . Total Hacks 6 | . 5 . . 1 . Successful 6 | . 5 . . 1 . Failed . | . . . . . . Catastrophic . | . . . . . . Database Lockouts . | . . . . . . Manual . | . . . . . . Terminals 5 | . 5 . . . . Fabricators . | . . . . . . Repair Stations . | . . . . . . Recycling Units . | . . . . . . Scanalyzers . | . . . . . . Garrison Access . | . . . . . . Terminal Hacks 6 | . 5 . . 1 . Record 1 | . 1 . . . . Prototype ID Bank 1 | . 1 . . . . Open Door 1 | . . . . 1 . Locate Traps 1 | . 1 . . . . Recall Investigation 1 | . 1 . . . . Zone Layout 1 | . 1 . . . . Fabricator Hacks . | . . . . . . Repair Station Hacks . | . . . . . . Recycling Unit Hacks . | . . . . . . Scanalyzer . | . . . . . . Garrison Access Hacks . | . . . . . . Unauthorized Hacks . | . . . . . . Terminals . | . . . . . . Fabricators . | . . . . . . Repair Stations . | . . . . . . Recycling Units . | . . . . . . Scanalyzers . | . . . . . . Garrison Access . | . . . . . . Data Cores Recovered . | . . . . . . Used . | . . . . . . Hacking Detections 1 | . 1 . . . . Full Trace Events 1 | . 1 . . . . Feedback Events . | . . . . . . Feedback Blocked . | . . . . . . Robot Schematics Acquired . | . . . . . . Robots Built . | . . . . . . Authchips . | . . . . . . Time . | . . . . . . Total Robot Build Rating . | . . . . . . Part Schematics Acquired . | . . . . . . Parts Built . | . . . . . . Authchips . | . . . . . . Time . | . . . . . . Total Part Build Rating . | . . . . . . Parts Repaired . | . . . . . . Time . | . . . . . . Parts Recycled . | . . . . . . Recycled Matter . | . . . . . . Retrieved Matter . | . . . . . . Retrieved Components . | . . . . . . Parts Scanalyzed . | . . . . . . Part Schematics Acquired . | . . . . . . Parts Damaged . | . . . . . . Bothacking | -11 -10 -10 -10 -9 -8 ------------ Run | Yrd Mat Min Exi Min Mat Used RIF Installer . | . . . . . . Robots Hacked . | . . . . . . Non-combat . | . . . . . . Combat . | . . . . . . Robot Hacks Applied . | . . . . . . Relay Couplers Released . | . . . . . . Fabnet Peak Effective % . | . . . . . . Robots Rewired . | . . . . . . Allies Hacked . | . . . . . . Hacks Repelled . | . . . . . . Allies | -11 -10 -10 -10 -9 -8 -------- Run | Yrd Mat Min Exi Min Mat Total Allies 3 | . . . . 3 . Largest Group 3 | . . . . 3 1 Highest-Rated Group 40 | . . . . 40 16 Highest-Rated Ally 16 | . . . . 16 16 Total Orders . | . . . . . . Ally Attacks 12 | . . . . 10 2 Total Damage 101 | . . . . 83 18 Kills 4 | . . . . 4 . Allies Corrupted . | . . . . . . Allies Melted . | . . . . . . Intel | -11 -10 -10 -10 -9 -8 ------- Run | Yrd Mat Min Exi Min Mat Robot Analysis Total . | . . . . . . Derelict Logs Recovered 1 | . . . . 1 . Drone Launches . | . . . . . . Drone Recoveries . | . . . . . . Exploration | -11 -10 -10 -10 -9 -8 ------------- Run | Yrd Mat Min Exi Min Mat Turns Passed 797 | 130 176 14 64 249 164 Spaces Moved 536 | 120 121 12 52 143 88 Core 189 | 3 5 . . 93 88 Treads . | . . . . . . Legs 158 | . 44 12 52 50 . Wheels 189 | 117 72 . . . . Hover . | . . . . . . Flight . | . . . . . . Fastest Speed 50 | 50 95 120 120 100 100 Average Speed 128 | 92 106 120 120 167 148 Slowest Speed 300 | 95 200 120 120 200 300 Overloaded Moves . | . . . . . . Propulsion Burnouts . | . . . . . . Robots Hopped . | . . . . . . Cave-ins Triggered . | . . . . . . Exploration Rate (%) 14 | 6 28 3 9 34 7 Regions Visited 5 Branch Regions 3 Pre-discovered Areas . | . . . . . . Known Exits Taken . | . . . . . . Unknown Exits Taken 5 | 1 1 1 1 1 . Scrap Searched . | . . . . . . Spaces Dug . | . . . . . . Terrain Destroyed 3 | . . . . . 3 Melee . | . . . . . . Projectile 3 | . . . . . 3 AOE . | . . . . . . Terrain Rammed . | . . . . . . Walls Destroyed . | . . . . . . Machines Disabled . | . . . . . . Actions | -11 -10 -10 -10 -9 -8 --------- Run | Yrd Mat Min Exi Min Mat Total 601 | 138 143 11 53 153 103 Wait 1 | . 1 . . . . Move 531 | 119 120 11 51 142 88 Hop . | . . . . . . Pick Up 21 | 11 1 . 2 7 . Fast Attach 1 | 1 . . . . . Attach 12 | 4 3 . . 3 2 Detach . | . . . . . . Swap . | . . . . . . Drop 3 | 2 1 . . . . Fire 29 | 1 16 . . . 12 Melee . | . . . . . . Ram 1 | . . . . . 1 Kick 2 | . 1 . . 1 . Crush . | . . . . . . Escape Stasis . | . . . . . . Rewire . | . . . . . . Trap . | . . . . . . Miscellaneous . | . . . . . . Route ------- -11/Scrapyard -10/Materials -10/Mines -10/Exiles -9/Mines -8/Materials History --------- Turn | Location | Event 2 | -11/Scrapyard | Met Revision 17 33 | -11/Scrapyard | Discovered new exit (range 16) 131 | -11/Scrapyard | Entered Materials 288 | -10/Materials | Lost 5 parts (1p1n3w) 289 | -10/Materials | Discovered new exit (range 15) 295 | -10/Materials | Core integrity fell below 50% 307 | -10/Materials | Entered Mines 308 | -10/Mines | Build established: Mutant 315 | -10/Mines | Deemed a non-threat by the Exiles lab entrance 315 | -10/Mines | Discovered new exit (range 5) 321 | -10/Mines | Entered Exiles 367 | -10/Exiles | Discovered new exit (range 15) 385 | -10/Exiles | Entered Mines 387 | -9/Mines | Assisted by bots powering up and referring to "LRC-V3" 403 | -9/Mines | Learned Materials stockpile data 521 | -9/Mines | Met a Derelict who couldn't figure out how to use a Trap Extractor 533 | -9/Mines | Core integrity fell below 20% 568 | -9/Mines | Discovered new exit (range 16) 634 | -9/Mines | Entered Materials 634 | -8/Materials | Accompanied by 1 ally 634 | -8/Materials | Evolved 4 slots: Utility x3, Weapon x1 739 | -8/Materials | Core integrity fell below 50% 755 | -8/Materials | Core integrity fell below 20% 756 | -8/Materials | Lost 4 parts (1p3w) 798 | -8/Materials | Destroyed by G-47 Trooper with Particle Gun Last Messages --------------- U-05 Engineer builds a Wall. G-47 Trooper heat damages Lgt. Nuclear Core. Lgt. Ion Engine destroyed. Processing Tank disabled. U-05 Engineer builds a Wall. Gauss Cannon destroyed. G-47 Trooper destroyed. Lgt. Assault Rifle destroyed. Hvy. Laser severed. R-06 Scavenger collects Imp. Heat Sink. Critical hit (Burn: +37). R-06 Scavenger collects Aluminum Leg. Slammed into L-31 Rogue. R-06 Scavenger collects Hvy. Laser. Critical hit (Burn: +37). Acquired 43 matter. Triggered Blade Trap. Massive razor-sharp blades shoot up from within the floor. U-05 Engineer lays Concrete. Map ----- +----------------------------------------------------+ | ?????? ???????????????????????? | | ?????? ???????????????????????? | | ??????# ???????????????????????? | | ??????# ???????????????????????? | | ??????# ???????????????????????? | | ?####?# #?########?????????????? | | ?? ! ?# "#?# = #?????????????? | | ??? # "%#?? #?????????????? | | ???? # "#??? ??????????????? | | ????? + #??? ??????????????? | | ??????# ##??? ??????????????? | | ??????# "##??? ??????????????? | | ??????# % #######+######+####????? | | ??????# % #????? | | ??????# % % #????? | | ??????# #????? | | ????######/########## #+########? | | ????# #??# # #? | | ????# "" #??# #= """ #? | | ????# """"" ! #??# # """ #? | | ????#= """"" #??# # """ #? | | ????# #??# # #? | | ????##############??# # """ #? | | ????????????????????# # """ #? | | ????????????????????# g# """ #? | | ????????????????????# g @ #? | | ????????????????????# ##########? | | ????????????????????# #?????????? | | ????????????????????# #?????????? | | ????????????????????# #?????????? | | ????????????????????# #?????????? | | ????????????????????# +?????????? | | ????????????????????# #?????????? | | ????????????????????# #?????????? | | ???????????????????? ??????????? | | ???????????????????? ??????????? | | ????????????????????# ??????????? | | ????????????????????# ??????????? | | ????????????????????? ??????????? | | ????????????????????? ??????????? | | ????????????????????? ??????????? | | ?????????????????????????????????? | | ?????????????????????????????????? | | ?????????????????????????????????? | | ?????????????????????????????????? | | ?????????????????????????????????? | | ?????????????????????????????????? | | ???????????????]?????????????????? | | ?????????????????????????????????? | | ?????????????????????????????????? | +----------------------------------------------------+ Best States ------------- Heat Dissipation 31 Energy Generation 10 Energy Capacity 250 Matter Stores 298 Matter Capacity 300 Sight Range 16 Terrain Scan Density 10 Evasion (%) 55 Item Schematics ----------------- None Robot Schematics ------------------ None Fabricated ------------ Nothing Alien Tech Used ----------------- None Achievements -------------- None Challenges ------------ None Game ------ Seed MicroClaymoresProjector Manual? 0 Play Time 00:11:40 Cumulative 9.2 hours Start 2024.06.12 @ 05:10:57 End 2024.06.12 @ 05:22:48 Sessions 1 Manual Loads 0 Difficulty Rogue Special Mode None Game No. 25 Rogue 25 Adventurer 0 Explorer 0 Win Type - Total 0 Types 0/0/0/0/0/0/0/0/0 Lore% 2 Gallery% 13 Achievement% 10 Wizard Run 0 Options --------- Layout 1 ASCII 0 Keyboard 1 Movement Numpad Keybinds 0 Fullscreen 1 Font 32/SmallcapsGlow Map View 50x35 Zoom Use 8% Tactical HUD 0 Map Filters NONE Filters NONE Steam 0 RUN: 7dfa045e-3e9c-4a13-9934-9c9ad9eb68a5